bitfinex/quotes_BTCUSD_20220211
["timestamp","ask_amount","ask_price","bid_price","bid_amount"]
[1644582765753,0.38507239,43622.0,43619.0,0.057338]
[1644582765954,0.44241039,43622.0,43619.0,0.10757537]
[1644582766154,0.44241039,43622.0,43619.0,0.107338]
[1644582766953,0.49975762,43622.0,43619.0,0.107338]
[1644582767355,0.53492984,43622.0,43619.0,0.05]
[1644582767554,0.057338,43622.0,43618.0,0.00096624]
[1644582767809,0.057338,43622.0,43620.0,0.057342]
[1644582768004,0.057338,43622.0,43618.0,0.11565224]
[1644582768208,0.057338,43622.0,43620.0,0.057341]
[1644582771005,0.05422374,43622.0,43619.0,0.05096625]
[1644582771213,0.05422374,43622.0,43619.0,0.10831025]
[1644582771410,0.05422374,43622.0,43619.0,0.10807287]
[1644582771667,0.1669,43629.0,43619.0,0.10807287]
[1644582771897,0.5,43627.0,43619.0,0.68275564]
[1644582772068,0.75975845,43636.0,43624.0,0.114647]
[1644582772069,0.22955845,43636.0,43624.0,0.114647]
[1644582772372,0.5334,43638.0,43629.0,0.057327]
[1644582772572,0.07128298,43635.0,43629.0,0.057327]
[1644582772767,0.057325,43632.0,43623.0,0.19474462]
[1644582772967,0.057325,43632.0,43624.0,0.05]
[1644582773172,0.057325,43632.0,43630.0,0.00072068]
[1644582774170,0.057325,43632.0,43629.0,0.1]
[1644582774370,0.057325,43632.0,43629.0,0.10072068]
[1644582774571,0.057325,43632.0,43629.0,0.00072068]
[1644582774870,0.057325,43632.0,43629.0,0.05804968]
[1644582775315,0.057322,43634.0,43629.0,0.05804968]
[1644582775506,0.057322,43634.0,43629.0,0.057329]
[1644582775706,0.5684,43644.0,43630.0,0.323992]
[1644582775911,0.07844095,43641.0,43629.0,0.25207362]
[1644582776119,0.31341462,43640.0,43634.0,0.32333235]
[1644582776307,0.31341462,43640.0,43635.0,0.05]
[1644582776510,0.37073162,43640.0,43635.0,0.05]
[1644582776708,0.057317,43640.0,43635.0,0.05]
[1644582776908,0.057317,43640.0,43635.0,0.05067478]
[1644582777310,0.057317,43640.0,43636.0,0.057317]
[1644582777911,0.33560932,43640.0,43636.0,0.057317]
[1644582779352,0.33560932,43640.0,43636.0,0.05800134]
[1644582780357,0.06906015,43632.0,43629.0,0.19474462]
[1644582780555,0.06906015,43632.0,43629.0,0.00273775]
[1644582781159,0.36732002,43632.0,43629.0,0.00273775]
[1644582781455,0.06906015,43632.0,43627.0,0.114645]
[1644582781653,0.06906015,43632.0,43628.0,0.00068445]
[1644582782254,0.057328,43631.0,43628.0,0.00068445]
[1644582782502,0.28268041,43631.0,43628.0,0.00068445]
[1644582782655,0.28268041,43631.0,43627.0,0.164645]
[1644582782905,0.28268041,43631.0,43627.0,0.16532981]
[1644582783310,0.32610676,43630.0,43627.0,0.05068481]
[1644582783507,0.057336,43629.0,43627.0,0.05068481]
[1644582783714,0.057336,43629.0,43627.0,0.00068481]
[1644582783905,0.057336,43629.0,43620.0,0.19474462]
[1644582783906,0.057336,43629.0,43620.0,0.25392362]
[1644582784105,0.057336,43629.0,43620.0,0.059179]
[1644582784106,0.06897617,43621.0,43620.0,0.059179]
[1644582784312,0.06897617,43621.0,43618.0,0.00023738]
[1644582784313,0.354798,43621.0,43619.0,0.00273975]
[1644582784507,0.05735,43620.0,43619.0,0.00273975]
[1644582785108,0.05735,43620.0,43614.0,0.194982]
[1644582785307,0.05735,43620.0,43617.0,0.00068497]
[1644582786407,0.05735,43620.0,43616.0,0.00068494]
[1644582786850,0.0447874,43620.0,43616.0,0.00068494]
[1644582787252,0.24714915,43617.0,43616.0,0.00068494]
[1644582787557,0.34259413,43617.0,43615.0,0.00023738]
[1644582787752,0.0458,43617.0,43616.0,0.00068495]
[1644582787954,0.160506,43617.0,43616.0,0.00068495]
[1644582788452,0.35952821,43617.0,43616.0,0.00068495]
[1644582788652,0.35952821,43617.0,43613.0,0.194982]
[1644582788872,0.35952821,43617.0,43614.0,0.00068497]
[1644582789155,0.160506,43617.0,43614.0,0.05803397]
[1644582789552,0.0458,43617.0,43614.0,0.05803397]
[1644582789752,0.0458,43617.0,43614.0,0.05827135]
[1644582789952,0.0458,43617.0,43614.0,0.05758638]
[1644582790153,0.103146,43617.0,43614.0,0.00023738]
[1644582790408,0.103146,43617.0,43613.0,0.00092066]
[1644582790606,0.07597596,43616.0,43613.0,0.00092066]
[1644582790815,0.34894214,43614.0,43613.0,0.00092066]
[1644582791108,0.34894214,43614.0,43612.0,0.30209662]
[1644582791109,0.057353,43614.0,43612.0,0.10758938]
[1644582791308,0.057353,43614.0,43612.0,0.05]
[1644582791309,0.32664909,43614.0,43612.0,0.05]
[1644582791707,0.32664909,43614.0,43611.0,0.0109207]
[1644582792309,0.057356,43612.0,43611.0,0.01023738]
[1644582792511,0.057356,43612.0,43611.0,0.01]
[1644582793120,0.057356,43612.0,43611.0,0.20474462]
[1644582793513,0.057348,43616.0,43611.0,0.26209262]
[1644582793709,0.057348,43616.0,43611.0,0.26233]
[1644582794205,0.33981896,43620.0,43612.0,0.19474462]
[1644582794356,0.0458,43619.0,43612.0,0.244982]
[1644582794656,0.30425843,43616.0,43612.0,0.244982]
[1644582794857,0.30425843,43616.0,43612.0,0.00023738]
[1644582795055,0.41896643,43616.0,43613.0,0.00068453]
[1644582795956,0.057354,43615.0,43612.0,0.00023738]
[1644582796156,0.057354,43615.0,43612.0,0.00068454]
[1644582796157,0.39217576,43615.0,43612.0,0.00068454]
[1644582796359,0.2663188,43614.0,43612.0,0.00092192]
[1644582796557,0.33167369,43613.0,43612.0,0.00068454]
[1644582796861,0.43167369,43613.0,43612.0,0.00068454]
[1644582797057,0.48903669,43613.0,43612.0,0.00068454]
[1644582797260,0.48903669,43613.0,43611.0,0.01]
[1644582798106,0.78257782,43613.0,43611.0,0.01]
[1644582798307,0.114726,43612.0,43611.0,0.01]
[1644582799513,0.44864451,43612.0,43611.0,0.01]
[1644582799908,0.54864451,43612.0,43611.0,0.01]
[1644582801009,0.214726,43612.0,43611.0,0.01]
[1644582801405,0.114726,43612.0,43611.0,0.01]
[1644582802261,0.62192012,43617.0,43611.0,0.01]
[1644582802262,0.11470356,43622.0,43611.0,0.01]
[1644582802461,0.20448407,43623.0,43611.0,0.01]
[1644582802462,0.5,43621.0,43611.0,0.01]
[1644582802770,0.5,43621.0,43611.0,0.20474462]
[1644582802955,0.5,43621.0,43611.0,0.25474462]
[1644582803156,0.5,43621.0,43612.0,0.19474462]
[1644582803356,0.33112752,43622.0,43617.0,0.39343479]
[1644582803557,0.02508407,43623.0,43617.0,0.39343479]
[1644582803855,0.02508407,43623.0,43618.0,0.05]
[1644582804256,0.057343,43620.0,43618.0,0.05]
[1644582804662,0.057343,43620.0,43618.0,0.10802543]
[1644582805702,0.057343,43620.0,43618.0,0.107342]
[1644582805917,0.057343,43620.0,43619.0,0.30059803]
[1644582806107,0.02508407,43623.0,43619.0,0.30059803]
[1644582806305,0.02508407,43623.0,43619.0,0.35793103]
[1644582806504,0.1958876,43634.0,43620.0,0.05]
[1644582806704,0.5,43633.0,43620.0,0.05]
[1644582806904,0.5,43633.0,43631.0,0.05732]
[1644582806905,0.26058981,43633.0,43631.0,0.05732]
[1644582807409,0.1958876,43638.0,43631.0,0.11464]
[1644582807604,0.1958876,43638.0,43631.0,0.05732]
[1644582807605,0.06824938,43638.0,43631.0,0.05732]
[1644582808203,0.12557641,43638.0,43632.0,0.0006477]
[1644582808405,0.057321,43637.0,43632.0,0.0006477]
[1644582808605,0.057321,43637.0,43632.0,0.0579707]
[1644582809081,0.28948455,43633.0,43632.0,0.0579707]
[1644582809255,0.06824938,43638.0,43632.0,0.057323]
[1644582809457,0.214648,43640.0,43632.0,0.0579707]
[1644582809660,0.19584786,43644.0,43633.0,0.39008232]
[1644582809858,0.19584786,43647.0,43638.0,0.05]
[1644582810063,0.19584786,43650.0,43639.0,0.70987432]
[1644582810267,0.25997235,43646.0,43639.0,0.43588232]
[1644582810555,0.25997235,43646.0,43640.0,0.323992]
[1644582810556,0.25669517,43646.0,43640.0,0.323992]
[1644582810756,0.25669517,43646.0,43641.0,0.0458]
[1644582811156,0.21635342,43644.0,43641.0,0.0458]
[1644582811356,0.25669517,43646.0,43641.0,0.0458]
[1644582812459,0.45371513,43646.0,43641.0,0.0458]
[1644582812906,0.45371513,43646.0,43641.0,0.103111]
[1644582813104,0.45371513,43646.0,43641.0,0.153111]
[1644582813322,0.25484809,43646.0,43641.0,0.153111]
[1644582813504,0.25484809,43646.0,43641.0,0.057311]
[1644582813904,0.25315886,43651.0,43641.0,0.057311]
[1644582814104,0.35625767,43652.0,43643.0,0.057298]
[1644582814105,0.19584786,43652.0,43643.0,0.057298]
[1644582814310,0.00065703,43652.0,43645.0,0.057298]
[1644582814504,0.00065703,43652.0,43645.0,0.107298]
[1644582814904,0.00065703,43652.0,43648.0,0.39889566]
[1644582815104,0.00065703,43652.0,43648.0,0.44889566]
[1644582815310,0.31417056,43656.0,43648.0,0.50619266]
[1644582815504,0.00065699,43652.0,43648.0,0.50619266]
[1644582816656,0.31417056,43656.0,43649.0,0.057296]
[1644582816854,0.00065699,43652.0,43651.0,0.057292]
[1644582817054,0.00065699,43652.0,43650.0,0.114583]
[1644582817259,0.00065699,43652.0,43648.0,0.31977495]
[1644582817459,0.00065699,43652.0,43648.0,0.36977495]
[1644582817752,0.001,43656.0,43648.0,0.36977495]
[1644582817959,0.00065009,43652.0,43648.0,0.36977495]
[1644582818766,0.00065009,43652.0,43649.0,0.057296]
[1644582818955,0.001,43656.0,43650.0,0.114583]
[1644582819156,0.00037368,43652.0,43651.0,0.05]
[1644582820156,0.001,43656.0,43651.0,0.05]
[1644582820412,0.2863655,43654.0,43651.0,0.05]
[1644582820617,0.001,43656.0,43651.0,0.05]
[1644582821214,0.0696787,43652.0,43651.0,0.05]
[1644582821616,0.0696787,43652.0,43646.0,0.057305]
[1644582821818,0.06786947,43652.0,43648.0,0.05]
[1644582822016,0.32523915,43651.0,43648.0,6.986e-05]
[1644582822312,0.06786947,43652.0,43648.0,6.986e-05]
[1644582823316,0.31801156,43651.0,43648.0,6.986e-05]
[1644582824559,0.12517647,43652.0,43648.0,6.986e-05]
[1644582825158,0.06786947,43652.0,43648.0,6.986e-05]
[1644582825963,0.06786947,43652.0,43648.0,9.444e-05]
[1644582826200,0.32573018,43651.0,43648.0,9.444e-05]
[1644582826561,0.60778558,43651.0,43648.0,9.444e-05]
[1644582827161,0.3357444,43650.0,43648.0,9.444e-05]
[1644582827362,0.33667894,43649.0,43648.0,9.444e-05]
[1644582827563,0.38247894,43649.0,43648.0,9.444e-05]
[1644582827813,0.48064501,43649.0,43648.0,9.444e-05]
[1644582828010,0.43795901,43649.0,43648.0,9.444e-05]
[1644582828205,0.38064501,43649.0,43648.0,9.444e-05]
[1644582828407,0.0458,43649.0,43648.0,9.444e-05]
[1644582831406,0.3791347,43649.0,43648.0,9.444e-05]
[1644582832659,0.4791347,43649.0,43648.0,0.00011019]
[1644582833058,0.73570928,43649.0,43648.0,0.00011019]
[1644582833460,2.75258959,43649.0,43648.0,0.00011019]
[1644582834357,2.75258959,43649.0,43648.0,0.00305336]
[1644582834656,3.07214879,43649.0,43648.0,0.00305336]
[1644582835313,0.4653592,43649.0,43648.0,0.00305336]
[1644582835705,0.9653592,43649.0,43648.0,0.00305336]
[1644582836407,0.4653592,43649.0,43648.0,0.00305336]
[1644582836825,0.79270097,43649.0,43648.0,0.00305336]
[1644582837810,0.79270097,43649.0,43635.0,0.114637]
[1644582837811,0.214228,43639.0,43635.0,0.114637]
[1644582838012,0.06422612,43635.0,43630.0,0.42]
[1644582838211,0.06422612,43635.0,43626.0,0.05]
[1644582838410,0.3374928,43636.0,43624.0,0.164648]
[1644582838411,0.08355873,43628.0,43624.0,0.164648]
[1644582838610,0.0458,43638.0,43624.0,0.164648]
[1644582838815,0.0458,43638.0,43626.0,0.057329]
[1644582839262,0.057323,43637.0,43628.0,0.057326]
[1644582839461,0.0458,43638.0,43628.0,0.057326]
[1644582839662,0.06484173,43634.0,43632.0,0.057322]
[1644582841261,0.05984173,43634.0,43632.0,0.057322]
[1644582842064,0.30644988,43638.0,43631.0,0.24712067]
[1644582842664,0.53617415,43638.0,43631.0,0.24712067]
[1644582842907,0.53617415,43638.0,43631.0,0.30374897]
[1644582843110,0.23,43638.0,43633.0,0.323992]
[1644582843310,0.23,43638.0,43635.0,0.323992]
[1644582843507,0.23,43638.0,43633.0,0.323992]
[1644582843708,0.23,43638.0,43633.0,0.423992]
[1644582843909,0.23,43638.0,43635.0,0.323992]
[1644582844114,0.23,43638.0,43635.0,0.373992]
[1644582844329,0.23,43638.0,43635.0,0.05]
[1644582844608,0.23,43638.0,43634.0,0.05]
[1644582844811,0.23,43638.0,43636.0,0.423992]
[1644582845012,0.23,43638.0,43637.0,0.323992]
[1644582845209,0.23,43638.0,43637.0,0.373992]
[1644582846312,0.23,43638.0,43637.0,0.05]
[1644582846758,0.23,43638.0,43636.0,0.05]
[1644582846956,0.23,43638.0,43637.0,0.323992]
[1644582847356,0.19566349,43649.0,43644.0,0.34047827]
[1644582847562,0.07366654,43648.0,43644.0,0.34047827]
[1644582847956,0.07366654,43648.0,43644.0,0.28317227]
[1644582848356,0.42218845,43648.0,43644.0,0.34047727]
[1644582848556,0.07366654,43648.0,43644.0,0.34047727]
[1644582849158,0.26933003,43648.0,43644.0,0.34047727]
[1644582849760,0.2986584,43646.0,43644.0,0.34047727]
[1644582850157,0.19566349,43647.0,43644.0,0.34047727]
[1644582850415,0.26933003,43648.0,43644.0,0.34047727]
[1644582850623,0.07366654,43648.0,43644.0,0.34047727]
[1644582850814,0.23,43646.0,43644.0,0.34047727]
[1644582851213,0.23,43646.0,43645.0,0.05]
[1644582852816,0.5826807,43646.0,43645.0,0.05]
[1644582854362,0.58372819,43646.0,43645.0,0.05]
[1644582854571,0.58372819,43646.0,43644.0,0.22586627]
[1644582854895,0.82830755,43646.0,43644.0,0.22586627]
[1644582855263,0.24457936,43645.0,43644.0,0.22586627]
[1644582856065,0.88562007,43646.0,43644.0,0.22586627]
[1644582856264,0.24457936,43645.0,43644.0,0.22586627]
[1644582856868,0.94293007,43646.0,43644.0,0.22586627]
[1644582857264,0.24457936,43645.0,43644.0,0.22586627]
[1644582859109,0.24562591,43645.0,43644.0,0.22586627]
[1644582860111,0.29142591,43645.0,43644.0,0.22586627]
[1644582861111,0.04684655,43645.0,43644.0,0.22586627]
[1644582862965,0.29181813,43645.0,43644.0,0.22586627]
[1644582863163,0.04684655,43645.0,43644.0,0.22586627]
[1644582864615,0.00104655,43645.0,43644.0,0.22586627]
[1644582864767,0.00104655,43645.0,43644.0,0.56619959]
[1644582864966,0.00104655,43645.0,43644.0,0.27586627]
[1644582866216,0.30565859,43645.0,43644.0,0.27586627]
[1644582868820,0.30565859,43645.0,43644.0,0.22586627]
[1644582869888,0.73168629,43645.0,43644.0,0.22576718]
[1644582870857,0.36296979,43645.0,43644.0,0.22576718]
[1644582871858,0.66438549,43645.0,43644.0,0.22576718]
[1644582872911,0.36296979,43645.0,43644.0,0.22576718]
[1644582873507,0.60800015,43645.0,43644.0,0.22576718]
[1644582875306,0.63063076,43645.0,43644.0,0.22576718]
[1644582876109,0.3856004,43645.0,43644.0,0.22576718]
[1644582876308,0.63063237,43645.0,43644.0,0.22576718]
[1644582876554,0.3856004,43645.0,43644.0,0.22576718]
[1644582881604,0.67937219,43645.0,43644.0,0.22576718]
[1644582882405,0.3856004,43645.0,43644.0,0.22576718]
[1644582882807,0.3282892,43645.0,43644.0,0.22576718]
[1644582889609,0.32724265,43645.0,43644.0,0.22576718]
[1644582891162,0.37735356,43646.0,43644.0,0.22576718]
[1644582891308,0.62241709,43646.0,43644.0,0.22576718]
[1644582891760,0.62241709,43646.0,43644.0,0.67682108]
[1644582891961,0.05731,43645.0,43644.0,0.61951708]
[1644582892160,0.05731,43645.0,43644.0,0.90818584]
[1644582892563,0.05731,43645.0,43644.0,0.90636384]
[1644582892866,0.05731,43645.0,43644.0,0.51261394]
[1644582894061,0.05731,43645.0,43644.0,0.86216324]
[1644582894361,0.43465656,43646.0,43644.0,0.91216324]
[1644582895184,0.43465656,43646.0,43644.0,0.33124918]
[1644582895412,0.67972009,43646.0,43644.0,0.22394518]
[1644582895816,0.43465656,43646.0,43644.0,0.22394518]
[1644582896411,0.11462309,43645.0,43644.0,0.22394518]
[1644582899360,0.72842835,43646.0,43644.0,0.27394518]
[1644582899361,0.23,43646.0,43644.0,0.27394518]
[1644582899563,0.23,43646.0,43645.0,0.323992]
[1644582900161,0.23,43646.0,43645.0,0.7099633]
[1644582900566,0.23,43646.0,43645.0,0.3859713]
[1644582901367,0.29873604,43646.0,43644.0,0.38853518]
[1644582901572,0.35604104,43646.0,43644.0,0.22394518]
[1644582901865,0.83086582,43645.0,43644.0,0.22394518]
[1644582902065,0.33989138,43645.0,43644.0,0.22394518]
[1644582902266,0.33988595,43645.0,43644.0,0.22394518]
[1644582902463,0.73833813,43645.0,43644.0,0.22394518]
[1644582902663,0.44425218,43645.0,43644.0,0.22394518]
[1644582902909,0.73834673,43645.0,43644.0,0.22394518]
[1644582903109,0.92567292,43645.0,43644.0,0.22394518]
[1644582903808,1.02567292,43645.0,43644.0,0.22394518]
[1644582904209,1.35624821,43645.0,43644.0,0.22394518]
[1644582904409,1.69936377,43645.0,43644.0,0.22394518]
[1644582904610,2.19936377,43645.0,43644.0,0.22394518]
[1644582906412,1.85624821,43645.0,43644.0,0.22394518]
[1644582906666,2.19935659,43645.0,43644.0,0.22394518]
[1644582907685,2.09935659,43645.0,43644.0,0.22394518]
[1644582907964,2.09934825,43645.0,43644.0,0.22394518]
[1644582908964,2.19925714,43645.0,43644.0,0.22394518]
[1644582909565,1.92316676,43645.0,43644.0,0.22394518]
[1644582909766,1.92316468,43645.0,43644.0,0.22394518]
[1644582910165,2.19925864,43645.0,43644.0,0.22394518]
[1644582910614,0.97394,43644.0,43642.0,0.00065219]
[1644582910822,0.97394,43644.0,43624.0,0.395821]
[1644582910823,1.05691106,43643.0,43627.0,0.32601133]
[1644582911022,1.05691106,43643.0,43624.0,0.1666]
[1644582911023,0.29411057,43637.0,43624.0,0.1666]
[1644582911219,0.86721057,43634.0,43621.0,0.2635101]
[1644582911415,0.06865879,43623.0,43621.0,0.06877352]
[1644582911615,0.0458,43622.0,43621.0,0.06877352]
[1644582914962,0.0458,43627.0,43621.0,0.06877352]
[1644582915192,0.0458,43627.0,43621.0,0.12610352]
[1644582915366,0.103133,43627.0,43623.0,0.05733]
[1644582915564,0.0458,43627.0,43623.0,0.05733]
[1644582916567,0.0458,43627.0,43622.0,0.05]
[1644582916764,0.0877454,43624.0,43623.0,0.00070901]
[1644582917164,0.1335454,43624.0,43623.0,0.00070901]
[1644582917820,0.40555812,43624.0,43621.0,0.00070902]
[1644582918911,0.40555812,43624.0,43620.0,0.009178]
[1644582919111,0.63555812,43624.0,43620.0,0.00988702]
[1644582919411,0.057342,43623.0,43620.0,0.00988702]
[1644582919616,0.103142,43623.0,43620.0,0.00988702]
[1644582920010,0.103142,43623.0,43620.0,0.009178]
[1644582920413,0.1012552,43623.0,43620.0,0.00942187]
[1644582921015,0.05286655,43622.0,43620.0,0.00942187]
[1644582921212,0.05734783,43622.0,43620.0,0.009178]
[1644582922964,0.17204937,43621.0,43619.0,0.00067513]
[1644582923167,0.114703,43620.0,43619.0,0.00067513]
[1644582923365,0.4951891,43620.0,43619.0,0.00067513]
[1644582923565,0.160503,43620.0,43619.0,0.00067513]
[1644582923765,0.05735287,43619.0,43613.0,0.00024387]
[1644582923965,0.0458,43618.0,43617.0,0.00068052]
[1644582924165,0.103151,43618.0,43617.0,0.00068052]
[1644582924365,0.42947517,43618.0,43617.0,0.00068052]
[1644582924968,0.13087284,43617.0,43613.0,0.00024387]
[1644582925165,0.13087284,43617.0,43615.0,0.00068055]
[1644582925166,0.103152,43616.0,43615.0,0.00068055]
[1644582925412,0.44762789,43616.0,43615.0,0.00068055]
[1644582926212,0.44762789,43616.0,43613.0,0.00068058]
[1644582927212,0.44762789,43616.0,43613.0,0.057351]
[1644582927616,0.44762789,43616.0,43613.0,0.00024387]
[1644582928112,0.44762789,43616.0,43612.0,0.00092367]
[1644582928414,0.44762789,43616.0,43612.0,0.00024387]
[1644582928613,0.44762789,43616.0,43612.0,0.0006798]
[1644582928813,0.44762789,43616.0,43612.0,0.00092367]
[1644582929060,0.44792789,43616.0,43612.0,0.00092367]
[1644582929662,0.00027118,43615.0,43612.0,0.00024387]
[1644582929862,0.103154,43614.0,43612.0,0.0006798]
[1644582930092,0.103154,43614.0,43612.0,0.00092367]
[1644582930367,0.103154,43614.0,43612.0,0.0006798]
[1644582930962,0.103154,43614.0,43611.0,0.067354]
[1644582931182,0.103154,43614.0,43611.0,0.06803486]
[1644582932167,0.103154,43614.0,43611.0,0.067354]
[1644582932366,0.0458,43614.0,43611.0,0.06759787]
[1644582932567,0.00027118,43615.0,43611.0,0.11759787]
[1644582932827,0.00027118,43615.0,43612.0,0.64518393]
[1644582933124,0.0003,43616.0,43614.0,0.38131963]
[1644582933313,0.0003,43616.0,43615.0,0.65643132]
[1644582942214,0.05732843,43628.0,43627.0,0.1579836]
[1644582942414,0.10965943,43628.0,43627.0,0.1579836]
[1644582942617,0.10965943,43628.0,43620.0,0.60584569]
[1644582942814,0.32768445,43630.0,43621.0,0.057333]
[1644582943215,0.32768445,43630.0,43625.0,0.00067944]
[1644582943821,0.32768445,43630.0,43626.0,0.05733]
[1644582943822,0.38501708,43630.0,43626.0,0.05733]
[1644582944059,0.17200051,43629.0,43626.0,0.05733]
[1644582944263,0.07935142,43627.0,43626.0,0.05733]
[1644582947266,0.07935142,43627.0,43624.0,0.00067975]
[1644582947465,0.057341,43626.0,43624.0,0.00067975]
[1644582947663,0.11468761,43626.0,43619.0,0.00024387]
[1644582947924,0.61248053,43626.0,43623.0,0.00067977]
[1644582948123,0.69620779,43625.0,43623.0,0.00067977]
[1644582948327,0.35632099,43624.0,43623.0,0.00067977]
[1644582948521,0.3564523,43624.0,43623.0,0.00067977]
[1644582948722,0.260495,43624.0,43623.0,0.00067977]
[1644582948931,0.260495,43624.0,43618.0,0.00024387]
[1644582949123,0.057351,43622.0,43621.0,0.00067975]
[1644582949323,0.103151,43622.0,43621.0,0.00067975]
[1644582949723,0.153151,43622.0,43621.0,0.00067975]
[1644582950124,0.19255071,43619.0,43616.0,0.00024387]
[1644582950364,0.08132241,43614.0,43613.0,0.00271955]
[1644582950927,0.31367794,43616.0,43611.0,0.00796342]
[1644582951125,0.057349,43614.0,43611.0,0.00741242]
[1644582951326,0.057349,43614.0,43611.0,0.00716708]
[1644582952164,0.07323459,43613.0,43611.0,0.00716708]
[1644582952364,0.057351,43612.0,43611.0,0.00716708]
[1644582954566,0.1331472,43612.0,43611.0,0.00716708]
[1644582954968,0.3631472,43612.0,43611.0,0.00716708]
[1644582958715,0.3057962,43612.0,43611.0,0.00716708]
[1644582959369,0.3557962,43612.0,43611.0,0.00716708]
[1644582960165,0.4131522,43612.0,43611.0,0.00716708]
[1644582962470,0.78448394,43612.0,43611.0,0.00716708]
[1644582962667,0.88448394,43612.0,43611.0,0.00716708]
[1644582963517,1.0,43611.0,43609.0,0.00065053]
[1644582963719,1.0,43611.0,43600.0,0.37053658]
[1644582963720,0.51281376,43610.0,43602.0,0.00024534]
[1644582963917,0.25792962,43604.0,43600.0,0.17840269]
[1644582964117,0.34741884,43602.0,43601.0,0.01024491]
[1644582964358,0.34741884,43602.0,43601.0,0.01]
[1644582964520,0.66461646,43602.0,43601.0,0.01]
[1644582964715,0.71041646,43602.0,43601.0,0.01]
[1644582965718,0.76041646,43602.0,43601.0,0.01]
[1644582966323,0.81778646,43602.0,43601.0,0.01]
[1644582966563,1.05737,43601.0,43588.0,0.35865587]
[1644582966766,1.05737,43601.0,43599.0,0.00024494]
[1644582966767,0.0458,43600.0,43599.0,0.00024494]
[1644582966964,0.0458,43600.0,43593.0,0.00024494]
[1644582966965,0.1605507,43600.0,43593.0,0.00024494]
[1644582967169,0.1605507,43600.0,43595.0,0.00072899]
[1644582967365,0.2105507,43600.0,43595.0,0.00072899]
[1644582967619,0.057376,43598.0,43595.0,0.00072899]
[1644582967765,0.28415008,43596.0,43595.0,0.00072899]
[1644582968066,0.40856664,43596.0,43595.0,0.00072899]
[1644582968266,0.12441656,43596.0,43592.0,0.00024494]
[1644582968566,0.12441656,43596.0,43593.0,0.000729]
[1644582969168,0.46678421,43596.0,43593.0,0.000729]
[1644582969366,0.46678421,43596.0,43593.0,0.00024494]
[1644582969567,0.46678421,43596.0,43592.0,0.05834394]
[1644582969966,0.46678421,43596.0,43592.0,0.058099]
[1644582970166,0.46651421,43596.0,43592.0,0.058099]
[1644582970615,0.46651421,43596.0,43592.0,0.05737]
[1644582970916,0.46651421,43596.0,43592.0,0.00072901]
[1644582971115,0.46651421,43596.0,43592.0,0.05810301]
[1644582971713,0.46651421,43596.0,43592.0,0.057374]
[1644582972114,0.46651421,43596.0,43592.0,0.05806882]
[1644582972319,0.44151421,43596.0,43592.0,0.05806882]
[1644582973315,0.39571421,43596.0,43592.0,0.05806882]
[1644582973814,0.44571421,43596.0,43592.0,0.05806882]
[1644582974260,0.44388692,43596.0,43592.0,0.057374]
[1644582974459,0.44388692,43596.0,43592.0,0.05806882]
[1644582975161,0.32520321,43593.0,43592.0,0.05806882]
[1644582975363,0.32520321,43593.0,43591.0,0.01]
[1644582975562,0.32520321,43593.0,43592.0,0.00072901]
[1644582976171,0.38258148,43593.0,43592.0,0.00072901]
[1644582976662,0.43996248,43593.0,43591.0,0.01]
[1644582976862,0.48996248,43593.0,43591.0,0.01]
[1644582977067,0.0458,43592.0,43591.0,0.01]
[1644582979822,0.5458,43592.0,43591.0,0.01]
[1644582981221,0.5458,43592.0,43591.0,0.00873281]
[1644582984769,0.0458,43592.0,43591.0,0.00873281]
[1644582988618,0.01619622,43592.0,43591.0,0.00873281]
[1644582989566,0.51619622,43592.0,43591.0,0.00873281]
[1644582990576,0.5,43592.0,43591.0,0.00873281]
[1644582991167,0.84475927,43593.0,43591.0,0.00873281]
[1644582991168,0.78737827,43593.0,43591.0,0.00873281]
[1644582991369,0.78737827,43593.0,43591.0,0.34913991]
[1644582991569,0.0898539,43604.0,43592.0,0.26371111]
[1644582991570,0.1147307,43597.0,43592.0,0.26371111]
[1644582991775,0.5,43601.0,43592.0,0.27344297]
[1644582991969,0.5,43601.0,43592.0,0.00024446]
[1644582992167,0.37152127,43599.0,43591.0,0.05873281]
[1644582992368,0.05736933,43599.0,43594.0,0.00067143]
[1644582992568,0.05736933,43599.0,43594.0,0.17276543]
[1644582992829,0.05736933,43599.0,43595.0,0.41114066]
[1644582993225,0.05736933,43599.0,43595.0,0.41138512]
[1644582993623,0.5,43601.0,43595.0,0.46939796]
[1644582993624,0.55735656,43601.0,43595.0,0.46939796]
[1644582993821,0.5,43601.0,43595.0,0.41939796]
[1644582994626,0.5,43601.0,43596.0,0.05]
[1644582994825,0.05,43601.0,43596.0,0.10825129]
[1644582995024,0.0573594,43599.0,43596.0,0.22296629]
[1644582995224,0.0573594,43599.0,43598.0,0.36058237]
[1644582995425,0.0573594,43599.0,43598.0,0.66735129]
[1644582995626,0.0573594,43599.0,43598.0,0.30676892]
[1644582996662,0.0573594,43599.0,43598.0,0.63173471]
[1644582998866,0.0573594,43599.0,43598.0,0.30676892]
[1644582999868,0.2873594,43599.0,43598.0,0.30676892]
[1644583001332,0.23,43599.0,43598.0,0.30676892]
[1644583001728,0.23,43599.0,43598.0,0.35676892]
[1644583005365,0.23,43599.0,43598.0,0.05]
[1644583005765,0.2873691,43599.0,43597.0,0.40060532]
[1644583005965,0.2873691,43599.0,43597.0,0.40036086]
[1644583006767,0.2823691,43599.0,43597.0,0.40036086]
[1644583006964,0.2823691,43599.0,43598.0,0.28899997]
[1644583007366,0.23,43599.0,43598.0,0.28899997]
[1644583007669,0.23,43599.0,43597.0,0.35060532]
[1644583007925,0.23,43599.0,43597.0,0.35036086]
[1644583008933,0.23,43599.0,43598.0,0.66581227]
[1644583009138,0.23,43599.0,43598.0,0.86054885]
[1644583009325,0.23,43599.0,43598.0,0.66581227]
[1644583010124,0.23,43599.0,43598.0,0.86054885]
[1644583010626,0.225,43599.0,43598.0,0.86054885]
[1644583011225,0.341818,43607.0,43598.0,0.86054885]
[1644583011429,0.341818,43607.0,43600.0,0.057364]
[1644583011662,0.341818,43607.0,43603.0,0.057364]
[1644583011663,0.057364,43604.0,43603.0,0.057364]
[1644583012565,0.05736345,43605.0,43603.0,0.057364]
[1644583012762,0.05736345,43605.0,43603.0,0.107364]
[1644583013363,0.04736345,43605.0,43603.0,0.107364]
[1644583013968,0.04736345,43605.0,43603.0,0.164724]
[1644583017225,0.057361,43606.0,43603.0,0.164724]
[1644583017632,0.057361,43606.0,43603.0,0.05736]
[1644583017827,0.55898037,43607.0,43602.0,0.00064773]